fUSD/lending_fUSD_20260527
["ID","MTS","AMOUNT","RATE_DAILY","PERIOD"]
[423104163,1779853832000,-313.00338255,0.00015879,2]
[423104155,1779853832000,-6116.50695948,0.00015881,2]
[423104146,1779853832000,-500.0,0.0001588,2]
[423104128,1779853832000,-500.0,0.00015879,2]
[423104145,1779853832000,-500.0,0.0001588,2]
[423104147,1779853832000,-500.0,0.0001588,2]
[423104133,1779853832000,-500.0,0.00015879,2]
[423104161,1779853832000,-500.0,0.00015879,2]
[423104132,1779853832000,-500.0,0.00015879,2]
[423104134,1779853832000,-500.0,0.00015879,2]
[423104139,1779853832000,-500.0,0.0001588,2]
[423104144,1779853832000,-500.0,0.0001588,2]
[423104137,1779853832000,-500.0,0.0001588,2]
[423104143,1779853832000,-240.28127912,0.0001588,2]
[423104142,1779853832000,-500.0,0.0001588,2]
[423104135,1779853832000,-500.0,0.00015879,2]
[423104140,1779853832000,-242.8932087,0.0001588,2]
[423104136,1779853832000,-1000.0,0.0001588,2]
[423104141,1779853832000,-500.0,0.0001588,2]
[423104138,1779853832000,-443.29751946,0.0001588,2]
[423104165,1779853838000,-186.99661745,0.00015879,2]
[423104167,1779853838000,-430.4111976,0.00015879,2]
[423104166,1779853838000,-500.0,0.00015879,2]
[423104169,1779853838000,-207.05596141,0.00015879,2]
[423104168,1779853838000,-69.5888024,0.00015879,2]
[423104171,1779853838000,-253.94669148,0.00015879,2]
[423104170,1779853838000,-149.97370277,0.00015879,2]
[423104414,1779853840000,-500.0,0.00015879,2]
[423104412,1779853840000,-500.0,0.00015879,2]
[423104406,1779853840000,-500.0,0.00015879,2]
[423104400,1779853840000,-166.46829173,0.00015879,2]
[423104441,1779853840000,-500.0,0.00015879,2]
[423104405,1779853840000,-500.0,0.00015879,2]
[423104410,1779853840000,-500.0,0.00015879,2]
[423104397,1779853840000,-566.87457824,0.00015879,2]
[423104396,1779853840000,-279.10931498,0.00015879,2]
[423104403,1779853840000,-500.0,0.00015879,2]
[423104435,1779853840000,-500.0,0.00015879,2]
[423104388,1779853840000,-96.07960575,0.00015879,2]
[423104390,1779853840000,-500.0,0.00015879,2]
[423104392,1779853840000,-397.57935302,0.00015879,2]
[423104404,1779853840000,-500.0,0.00015879,2]
[423104401,1779853840000,-333.53170827,0.00015879,2]
[423104399,1779853840000,-500.0,0.00015879,2]
[423104443,1779853840000,-236.24933296,0.00015879,2]
[423104430,1779853840000,-500.0,0.00015879,2]
[423104424,1779853840000,-500.0,0.00015879,2]
[423104439,1779853840000,-500.0,0.00015879,2]
[423104395,1779853840000,-220.89068502,0.00015879,2]
[423104437,1779853840000,-500.0,0.00015879,2]
[423104428,1779853840000,-500.0,0.00015879,2]
[423104426,1779853840000,-500.0,0.00015879,2]
[423104420,1779853840000,-500.0,0.00015879,2]
[423104398,1779853840000,-500.0,0.00015879,2]
[423104418,1779853840000,-500.0,0.00015879,2]
[423104416,1779853840000,-500.0,0.00015879,2]
[423104432,1779853840000,-500.0,0.00015879,2]
[423104402,1779853840000,-500.0,0.00015879,2]
[423104394,1779853840000,-102.42064698,0.00015879,2]
[423104408,1779853840000,-500.0,0.00015879,2]
[423104422,1779853840000,-500.0,0.00015879,2]
[423104548,1779853843000,-564.00685808,0.00015881,2]
[423104546,1779853843000,-263.75066704,0.00015879,2]
[423104547,1779853843000,-415.9809058,0.0001588,2]
[423104549,1779853843000,-1053.81862575,0.00015881,2]
[423104555,1779853845000,-22400.9712,0.00015881,2]
[423104556,1779853845000,-1078.2,0.00015881,2]
[423104559,1779853846000,-1973.05,0.00015881,2]
[423104557,1779853846000,-6174.89404862,0.00015881,2]
[423104558,1779853846000,-39212.18865268,0.00015881,2]
[423104563,1779854527000,185.724,0.00028026,120]
[423104567,1779854801000,-49.41068924,0.00013898,2]
[423104566,1779854801000,-150.0,0.00013791,2]
[423104569,1779854940000,1000.0,0.00028026,120]
[423104623,1779855031000,-150.0,0.00012944,2]
[423104625,1779855031000,-169.32,0.00013699,2]
[423104624,1779855031000,-276.71,0.00013345,2]
[423104626,1779855031000,-169.32,0.0001387,2]
[423104628,1779855031000,-191.65153978,0.00013904,2]
[423104631,1779855031000,-213.27914946,0.00014,2]
[423104630,1779855031000,-374.13,0.00013997,2]
[423104633,1779855031000,-152.0,0.00014004,7]
[423104629,1779855031000,-500.0,0.00013997,2]
[423104634,1779855031000,-169.32,0.00014041,2]
[423104627,1779855031000,-250.58931076,0.00013898,2]
[423104635,1779855031000,-300.0,0.00014103,2]
[423104641,1779855031000,-163.26368969,0.00014104,2]
[423104632,1779855031000,-36.72085054,0.00014,2]
[423104637,1779855031000,-150.0,0.00014104,2]
[423104639,1779855031000,-150.0,0.00014104,2]
[423104644,1779855031000,-150.0,0.00014104,2]
[423104636,1779855031000,-186.0,0.00014103,2]
[423104643,1779855031000,-150.0,0.00014104,2]
[423104642,1779855031000,-150.0,0.00014104,2]
[423104638,1779855031000,-151.94711238,0.00014104,2]
[423104645,1779855031000,-150.0,0.00014104,2]
[423104640,1779855031000,-150.0,0.00014104,2]
[423104701,1779855032000,-160.63626077,0.00014256,2]
[423104680,1779855032000,-380.71609283,0.00014215,2]
[423104696,1779855032000,-163.26368969,0.00014247,2]
[423104684,1779855032000,-150.0,0.00014216,2]
[423104692,1779855032000,-150.0,0.00014237,2]
[423104694,1779855032000,-300.0,0.00014239,2]
[423104688,1779855032000,-163.26368969,0.00014231,2]
[423104695,1779855032000,-300.14365949,0.00014239,2]
[423104690,1779855032000,-380.71609283,0.00014231,2]
[423104686,1779855032000,-150.0,0.00014222,2]
[423104697,1779855032000,-380.71609283,0.00014247,2]
[423104682,1779855032000,-150.0,0.00014216,2]
[423104699,1779855032000,-300.0,0.00014256,2]
[423104711,1779855032000,-163.26368969,0.00014294,2]
[423104702,1779855032000,-150.0,0.00014259,2]
[423104700,1779855032000,-300.0,0.00014256,2]
[423104708,1779855032000,-150.0,0.00014281,2]
[423104698,1779855032000,-150.0,0.00014252,2]
[423104703,1779855032000,-163.26368969,0.00014262,2]
[423104705,1779855032000,-150.0,0.00014272,2]
[423104704,1779855032000,-380.71609283,0.00014262,2]
[423104706,1779855032000,-163.26368969,0.00014278,2]
[423104707,1779855032000,-380.71609283,0.00014278,2]
[423104712,1779855032000,-380.71609283,0.00014294,2]
[423104678,1779855032000,-163.26368969,0.00014215,2]
[423104719,1779855032000,-380.71609283,0.00014326,2]
[423104716,1779855032000,-150.0,0.00014311,2]
[423104709,1779855032000,-150.0,0.00014282,2]
[423104691,1779855032000,-503.80446207,0.00014236,2]
[423104710,1779855032000,-150.0,0.00014283,2]
[423104676,1779855032000,-150.0,0.00014214,2]
[423104647,1779855032000,-163.26368969,0.0001412,2]
[423104648,1779855032000,-380.71609283,0.0001412,2]
[423104646,1779855032000,-380.71609283,0.00014104,2]
[423104651,1779855032000,-163.26368969,0.00014136,2]
[423104650,1779855032000,-150.0,0.00014134,2]
[423104660,1779855032000,-163.26368969,0.00014167,2]
[423104649,1779855032000,-150.0,0.00014126,2]
[423104653,1779855032000,-150.0,0.00014148,2]
[423104658,1779855032000,-150.0,0.00014163,2]
[423104661,1779855032000,-380.71609283,0.00014167,2]
[423104655,1779855032000,-163.26368969,0.00014152,2]
[423104654,1779855032000,-150.0,0.00014149,2]
[423104657,1779855032000,-150.0,0.0001416,2]
[423104652,1779855032000,-380.71609283,0.00014136,2]
[423104656,1779855032000,-380.71609283,0.00014152,2]
[423104665,1779855032000,-65.0032728,0.00014183,2]
[423104662,1779855032000,-150.0,0.0001417,2]
[423104663,1779855032000,-163.26368969,0.00014183,2]
[423104666,1779855032000,-150.0,0.00014192,2]
[423104671,1779855032000,-163.26368969,0.00014199,2]
[423104667,1779855032000,-150.0,0.00014193,2]
[423104664,1779855032000,-315.71282003,0.00014183,2]
[423104669,1779855032000,-150.0,0.00014194,2]
[423104672,1779855032000,-380.71609283,0.00014199,2]
[423104674,1779855032000,-169.32,0.00014212,2]
[423104670,1779855032000,-5881.2553892,0.00014197,2]
[423104668,1779855032000,-150.0,0.00014194,2]
[423104693,1779855032000,-150.0,0.00014238,2]
[423104713,1779855032000,-150.0,0.00014303,2]
[423104770,1779855032000,-150.0,0.00014507,2]
[423104717,1779855032000,-150.0,0.00014325,2]
[423104750,1779855032000,-158.65673111,0.00014437,2]
[423104755,1779855032000,-380.71609283,0.00014452,2]
[423104753,1779855032000,-150.0,0.0001444,2]
[423104749,1779855032000,-163.26368969,0.00014437,2]
[423104752,1779855032000,-150.0,0.0001444,2]
[423104754,1779855032000,-163.26368969,0.00014452,2]
[423104747,1779855032000,-44.88830757,0.00014429,2]
[423104756,1779855032000,-150.0,0.00014457,2]
[423104759,1779855032000,-163.26368969,0.00014468,2]
[423104769,1779855032000,-150.0,0.00014501,2]
[423104758,1779855032000,-150.0,0.00014462,2]
[423104761,1779855032000,-150.0,0.00014479,2]
[423104763,1779855032000,-380.71609283,0.00014484,2]
[423104765,1779855032000,-150.0,0.00014496,2]
[423104767,1779855032000,-163.26368969,0.000145,2]
[423104760,1779855032000,-380.71609283,0.00014468,2]
[423104762,1779855032000,-163.26368969,0.00014484,2]
[423104768,1779855032000,-380.71609283,0.000145,2]
[423104764,1779855032000,-150.0,0.00014488,2]
[423104766,1779855032000,-150.0,0.00014496,2]
[423104772,1779855032000,-380.71609283,0.00014516,2]
[423104771,1779855032000,-163.26368969,0.00014516,2]
[423104774,1779855032000,-150.0,0.00014523,2]
[423104775,1779855032000,-163.26368969,0.00014532,2]
[423104776,1779855032000,-380.71609283,0.00014532,2]
[423104777,1779855032000,-150.0,0.00014546,2]
[423104715,1779855032000,-380.71609283,0.0001431,2]
[423104757,1779855032000,-150.0,0.00014459,2]
[423104751,1779855032000,-222.05936172,0.00014437,2]
[423104773,1779855032000,-150.0,0.00014518,2]
[423104748,1779855032000,-150.0,0.00014435,2]
[423104718,1779855032000,-163.26368969,0.00014326,2]
[423104721,1779855032000,-150.0,0.00014328,2]
[423104720,1779855032000,-150.0,0.00014328,2]
[423104714,1779855032000,-163.26368969,0.0001431,2]
[423104723,1779855032000,-150.0,0.00014341,2]
[423104729,1779855032000,-150.0,0.00014369,2]
[423104733,1779855032000,-380.71609283,0.00014373,2]
[423104724,1779855032000,-163.26368969,0.00014342,2]
[423104746,1779855032000,-105.11169243,0.00014429,2]
[423104727,1779855032000,-163.26368969,0.00014357,2]
[423104728,1779855032000,-380.71609283,0.00014357,2]
[423104726,1779855032000,-150.0,0.00014347,2]
[423104722,1779855032000,-150.0,0.00014328,2]
[423104731,1779855032000,-150.0,0.00014373,2]
[423104725,1779855032000,-380.71609283,0.00014342,2]
[423104732,1779855032000,-163.26368969,0.00014373,2]
[423104738,1779855032000,-150.0,0.00014391,2]
[423104730,1779855032000,-150.0,0.0001437,2]
[423104740,1779855032000,-163.26368969,0.00014405,2]
[423104742,1779855032000,-150.0,0.00014413,2]
[423104737,1779855032000,-380.71609283,0.00014389,2]
[423104741,1779855032000,-380.71609283,0.00014405,2]
[423104735,1779855032000,-150.0,0.00014384,2]
[423104744,1779855032000,-163.26368969,0.00014421,2]
[423104739,1779855032000,-150.0,0.000144,2]
[423104734,1779855032000,-169.32,0.00014384,2]
[423104736,1779855032000,-163.26368969,0.00014389,2]
[423104743,1779855032000,-150.0,0.00014418,2]
[423104745,1779855032000,-380.71609283,0.00014421,2]
[423104815,1779855033000,-380.71609283,0.00014674,2]
[423104829,1779855033000,-150.0,0.00014722,2]
[423104819,1779855033000,-150.0,0.00014686,2]
[423104808,1779855033000,-150.0,0.00014656,2]
[423104816,1779855033000,-150.0,0.00014678,2]
[423104809,1779855033000,-163.26368969,0.00014658,2]
[423104813,1779855033000,-150.0,0.00014666,2]
[423104807,1779855033000,-380.71609283,0.00014642,2]
[423104810,1779855033000,-380.71609283,0.00014658,2]
[423104811,1779855033000,-150.0,0.00014664,2]
[423104812,1779855033000,-150.0,0.00014664,2]
[423104818,1779855033000,-25606.42,0.00014683,2]
[423104837,1779855033000,-163.26368969,0.00014753,2]
[423104827,1779855033000,-163.26368969,0.00014721,2]
[423104822,1779855033000,-150.0,0.00014695,2]
[423104826,1779855033000,-150.0,0.0001472,2]
[423104821,1779855033000,-380.71609283,0.0001469,2]
[423104828,1779855033000,-380.71609283,0.00014721,2]
[423104825,1779855033000,-380.71609283,0.00014706,2]
[423104824,1779855033000,-163.26368969,0.00014706,2]
[423104823,1779855033000,-150.0,0.000147,2]
[423104836,1779855033000,-180.53,0.00014746,2]
[423104835,1779855033000,-150.0,0.00014744,2]
[423104841,1779855033000,-163.26368969,0.00014769,2]
[423104814,1779855033000,-163.26368969,0.00014674,2]
[423104820,1779855033000,-163.26368969,0.0001469,2]
[423104817,1779855033000,-200.42646137,0.00014683,2]
[423104791,1779855033000,-163.26368969,0.00014595,2]
[423104804,1779855033000,-150.0,0.00014636,2]
[423104833,1779855033000,-163.26368969,0.00014737,2]
[423104781,1779855033000,-150.0,0.00014552,2]
[423104779,1779855033000,-380.71609283,0.00014547,2]
[423104778,1779855033000,-163.26368969,0.00014547,2]
[423104780,1779855033000,-150.0,0.00014548,2]
[423104783,1779855033000,-150.0,0.00014552,2]
[423104793,1779855033000,-150.0,0.00014597,2]
[423104782,1779855033000,-150.0,0.00014552,2]
[423104784,1779855033000,-163.26368969,0.00014563,2]
[423104787,1779855033000,-150.0,0.00014577,2]
[423104786,1779855033000,-150.0,0.00014568,2]
[423104789,1779855033000,-380.71609283,0.00014579,2]
[423104785,1779855033000,-380.71609283,0.00014563,2]
[423104788,1779855033000,-163.26368969,0.00014579,2]
[423104790,1779855033000,-150.0,0.0001459,2]
[423104792,1779855033000,-380.71609283,0.00014595,2]
[423104805,1779855033000,-150.0,0.00014641,2]
[423104798,1779855033000,-380.71609283,0.00014611,2]
[423104797,1779855033000,-163.26368969,0.00014611,2]
[423104799,1779855033000,-150.0,0.00014612,2]
[423104796,1779855033000,-166.3,0.0001461,2]
[423104794,1779855033000,-150.0,0.00014607,2]
[423104806,1779855033000,-163.26368969,0.00014642,2]
[423104803,1779855033000,-700.94893261,0.00014635,2]
[423104800,1779855033000,-163.26368969,0.00014626,2]
[423104795,1779855033000,-150.0,0.00014608,2]
[423104801,1779855033000,-380.71609283,0.00014626,2]
[423104802,1779855033000,-150.0,0.00014634,2]
[423104830,1779855033000,-500.0,0.00014722,2]
[423104839,1779855033000,-150.0,0.00014755,2]
[423104831,1779855033000,-150.0,0.00014725,2]
[423104875,1779855033000,-163.26368969,0.00014896,2]
[423104871,1779855033000,-380.71609283,0.0001488,2]
[423104869,1779855033000,-150.0,0.00014877,2]
[423104866,1779855033000,-380.71609283,0.00014864,2]
[423104873,1779855033000,-150.0,0.00014888,2]
[423104872,1779855033000,-150.0,0.00014888,2]
[423104867,1779855033000,-150.0,0.00014865,2]
[423104878,1779855033000,-150.0,0.00014902,2]
[423104879,1779855033000,-150.0,0.0001491,2]
[423104877,1779855033000,-150.0,0.00014899,2]
[423104889,1779855033000,-150.0,0.00014944,2]
[423104886,1779855033000,-150.0,0.00014943,2]
[423104870,1779855033000,-163.26368969,0.0001488,2]
[423104888,1779855033000,-380.71609283,0.00014943,2]
[423104884,1779855033000,-380.71609283,0.00014927,2]
[423104887,1779855033000,-163.26368969,0.00014943,2]
[423104880,1779855033000,-163.26368969,0.00014911,2]
[423104885,1779855033000,-150.0,0.00014932,2]
[423104881,1779855033000,-380.71609283,0.00014911,2]
[423104883,1779855033000,-163.26368969,0.00014927,2]
[423104892,1779855033000,-380.71609283,0.00014959,2]
[423104890,1779855033000,-150.0,0.00014955,2]
[423104893,1779855033000,-150.0,0.00014962,2]
[423104891,1779855033000,-163.26368969,0.00014959,2]
[423104895,1779855033000,-163.26368969,0.00014975,2]
[423104894,1779855033000,-150.0,0.00014965,2]
[423104882,1779855033000,-150.0,0.00014921,2]
[423104874,1779855033000,-150.0,0.00014888,2]
[423104868,1779855033000,-150.0,0.00014873,2]
[423104860,1779855033000,-150.0,0.00014832,2]
[423104838,1779855033000,-380.71609283,0.00014753,2]
[423104840,1779855033000,-150.0,0.00014766,2]
[423104834,1779855033000,-380.71609283,0.00014737,2]
[423104842,1779855033000,-380.71609283,0.00014769,2]
[423104845,1779855033000,-150.0,0.00014776,2]
[423104843,1779855033000,-150.0,0.00014776,2]
[423104844,1779855033000,-150.0,0.00014776,2]
[423104850,1779855033000,-163.26368969,0.00014801,2]
[423104849,1779855033000,-150.0,0.00014788,2]
[423104846,1779855033000,-150.0,0.00014784,2]
[423104851,1779855033000,-380.71609283,0.00014801,2]
[423104876,1779855033000,-380.71609283,0.00014896,2]
[423104847,1779855033000,-163.26368969,0.00014785,2]
[423104852,1779855033000,-150.0,0.0001481,2]
[423104859,1779855033000,-380.71609283,0.00014832,2]
[423104863,1779855033000,-380.71609283,0.00014848,2]
[423104856,1779855033000,-150.0,0.00014821,2]
[423104865,1779855033000,-163.26368969,0.00014864,2]
[423104848,1779855033000,-380.71609283,0.00014785,2]
[423104855,1779855033000,-380.71609283,0.00014816,2]
[423104853,1779855033000,-150.0,0.00014814,2]
[423104857,1779855033000,-150.0,0.00014832,2]
[423104861,1779855033000,-150.0,0.00014843,2]
[423104862,1779855033000,-163.26368969,0.00014848,2]
[423104854,1779855033000,-163.26368969,0.00014816,2]
[423104864,1779855033000,-150.0,0.00014855,2]
[423104858,1779855033000,-163.26368969,0.00014832,2]
[423104832,1779855033000,-150.0,0.00014731,2]
[423104897,1779855034000,-150.0,0.00014987,2]
[423104900,1779855034000,-150.0,0.00014991,2]
[423104898,1779855034000,-163.26368969,0.00014991,2]
[423104899,1779855034000,-380.71609283,0.00014991,2]
[423104896,1779855034000,-380.71609283,0.00014975,2]
[423104901,1779855034000,-4174.1682,0.00014997,2]
[423104904,1779855034000,-602.35168075,0.00014997,2]
[423104905,1779855034000,-1300.0,0.00014997,2]
[423104903,1779855034000,-424.0152,0.00014997,2]
[423104906,1779855034000,-797.7,0.00014997,2]
[423104902,1779855034000,-17583.46373057,0.00014997,2]
[423104912,1779855037000,-595.32417994,0.00014997,2]
[423104954,1779855038000,-150.0,0.00015142,2]
[423104956,1779855038000,-380.71609283,0.00015149,2]
[423104951,1779855038000,-380.71609283,0.00015133,2]
[423104949,1779855038000,-150.0,0.00015119,2]
[423104948,1779855038000,-380.71609283,0.00015117,2]
[423104947,1779855038000,-163.26368969,0.00015117,2]
[423104946,1779855038000,-150.0,0.00015112,2]
[423104952,1779855038000,-150.0,0.00015134,2]
[423104938,1779855038000,-380.71609283,0.00015086,2]
[423104943,1779855038000,-150.0,0.00015109,2]
[423104957,1779855038000,-150.0,0.00015164,2]
[423104953,1779855038000,-150.0,0.00015139,2]
[423104958,1779855038000,-163.26368969,0.00015165,2]
[423104955,1779855038000,-163.26368969,0.00015149,2]
[423104939,1779855038000,-150.0,0.00015089,2]
[423104962,1779855038000,-300.0,0.0001517,2]
[423104967,1779855038000,-163.26368969,0.00015196,2]
[423104964,1779855038000,-163.26368969,0.00015181,2]
[423104960,1779855038000,-150.0,0.00015168,2]
[423104968,1779855038000,-380.71609283,0.00015196,2]
[423104969,1779855038000,-150.0,0.00015198,2]
[423104961,1779855038000,-150.0,0.00015169,2]
[423104959,1779855038000,-380.71609283,0.00015165,2]
[423104965,1779855038000,-380.71609283,0.00015181,2]
[423104966,1779855038000,-150.0,0.00015186,2]
[423104963,1779855038000,-150.0,0.00015179,2]
[423104950,1779855038000,-163.26368969,0.00015133,2]
[423104945,1779855038000,-150.0,0.00015112,2]
[423104937,1779855038000,-163.26368969,0.00015086,2]
[423104933,1779855038000,-163.26368969,0.0001507,2]
[423104916,1779855038000,-150.0,0.00015,2]
[423104915,1779855038000,-150.0,0.00015,2]
[423104918,1779855038000,-380.71609283,0.00015006,2]
[423104914,1779855038000,-150.0,0.00015,2]
[423104917,1779855038000,-163.26368969,0.00015006,2]
[423104932,1779855038000,-150.0,0.00015056,2]
[423104919,1779855038000,-150.0,0.00015009,2]
[423104920,1779855038000,-276.71,0.00015013,2]
[423104931,1779855038000,-380.71609283,0.00015054,2]
[423104973,1779855038000,-150.0,0.00015223,2]
[423104921,1779855038000,-150.0,0.00015021,2]
[423104930,1779855038000,-163.26368969,0.00015054,2]
[423104924,1779855038000,-150.0,0.00015031,2]
[423104928,1779855038000,-150.0,0.0001505,2]
[423104923,1779855038000,-380.71609283,0.00015022,2]
[423104925,1779855038000,-163.26368969,0.00015038,2]
[423104927,1779855038000,-150.0,0.00015044,2]
[423104929,1779855038000,-150.0,0.00015053,2]
[423104913,1779855038000,-68021.59590874,0.00014997,2]
[423104926,1779855038000,-380.71609283,0.00015038,2]
[423104922,1779855038000,-163.26368969,0.00015022,2]
[423104944,1779855038000,-167.26,0.00015111,2]
[423104941,1779855038000,-163.26368969,0.00015101,2]
[423104940,1779855038000,-150.0,0.00015097,2]
[423104936,1779855038000,-150.0,0.0001508,2]
[423104935,1779855038000,-150.0,0.00015075,2]
[423104942,1779855038000,-380.71609283,0.00015101,2]
[423104934,1779855038000,-380.71609283,0.0001507,2]
[423104971,1779855038000,-163.26368969,0.00015212,2]
[423105010,1779855038000,-163.26368969,0.00015355,2]
[423104972,1779855038000,-380.71609283,0.00015212,2]
[423105002,1779855038000,-163.26368969,0.00015323,2]
[423105006,1779855038000,-163.26368969,0.00015339,2]
[423105015,1779855038000,-380.71609283,0.0001537,2]
[423105014,1779855038000,-163.26368969,0.0001537,2]
[423105005,1779855038000,-150.0,0.00015335,2]
[423105009,1779855038000,-150.0,0.00015346,2]
[423105008,1779855038000,-150.0,0.0001534,2]
[423105011,1779855038000,-380.71609283,0.00015355,2]
[423105012,1779855038000,-150.0,0.00015358,2]
[423105007,1779855038000,-380.71609283,0.00015339,2]
[423105025,1779855038000,-150.0,0.00015405,2]
[423105028,1779855038000,-380.71609283,0.00015418,2]
[423105021,1779855038000,-1100.0,0.000154,5]
[423105019,1779855038000,-380.71609283,0.00015386,2]
[423105017,1779855038000,-150.0,0.00015384,2]
[423105023,1779855038000,-380.71609283,0.00015402,2]
[423105016,1779855038000,-150.0,0.00015376,2]
[423105027,1779855038000,-163.26368969,0.00015418,2]
[423105018,1779855038000,-163.26368969,0.00015386,2]
[423105020,1779855038000,-150.0,0.00015391,2]
[423105022,1779855038000,-163.26368969,0.00015402,2]
[423105026,1779855038000,-150.0,0.00015406,2]
[423105031,1779855038000,-380.71609283,0.00015434,2]
[423105030,1779855038000,-163.26368969,0.00015434,2]
[423105032,1779855038000,-150.0,0.00015435,2]
[423105029,1779855038000,-150.0,0.00015428,2]
[423104975,1779855038000,-150.0,0.00015223,2]
[423105004,1779855038000,-150.0,0.00015335,2]
[423105013,1779855038000,-150.0,0.00015362,2]
[423105024,1779855038000,-150.0,0.00015403,2]
[423104996,1779855038000,-163.26368969,0.00015307,2]
[423105003,1779855038000,-380.71609283,0.00015323,2]
[423104974,1779855038000,-150.0,0.00015223,2]
[423104977,1779855038000,-163.26368969,0.00015228,2]
[423104976,1779855038000,-150.0,0.00015228,2]
[423104978,1779855038000,-380.71609283,0.00015228,2]
[423104981,1779855038000,-380.71609283,0.00015244,2]
[423104979,1779855038000,-150.0,0.0001523,2]
[423104982,1779855038000,-150.0,0.00015252,2]
[423104983,1779855038000,-150.0,0.00015257,2]
[423104980,1779855038000,-163.26368969,0.00015244,2]
[423104988,1779855038000,-163.26368969,0.00015275,2]
[423104987,1779855038000,-150.0,0.00015274,2]
[423104986,1779855038000,-150.0,0.00015268,2]
[423104970,1779855038000,-150.0,0.00015208,2]
[423104984,1779855038000,-163.26368969,0.0001526,2]
[423104999,1779855038000,-255.0,0.00015315,2]
[423105001,1779855038000,-150.0,0.00015318,2]
[423104998,1779855038000,-150.0,0.00015313,2]
[423104994,1779855038000,-380.71609283,0.00015291,2]
[423104995,1779855038000,-150.0,0.00015296,2]
[423104992,1779855038000,-150.0,0.00015287,2]
[423104989,1779855038000,-380.71609283,0.00015275,2]
[423105000,1779855038000,-150.0,0.00015316,2]
[423104997,1779855038000,-380.71609283,0.00015307,2]
[423104990,1779855038000,-150.0,0.00015279,2]
[423104991,1779855038000,-150.0,0.00015279,2]
[423104985,1779855038000,-380.71609283,0.0001526,2]
[423104993,1779855038000,-163.26368969,0.00015291,2]
[423105077,1779855039000,-648.30579715,0.00015582,2]
[423105074,1779855039000,-380.71609283,0.00015576,2]
[423105071,1779855039000,-150.0,0.00015561,2]
[423105072,1779855039000,-881.5698,0.00015571,2]
[423105073,1779855039000,-163.26368969,0.00015576,2]
[423105068,1779855039000,-150.0,0.00015559,2]
[423105067,1779855039000,-150.0,0.00015559,2]
[423105070,1779855039000,-380.71609283,0.0001556,2]
[423105064,1779855039000,-380.71609283,0.00015545,2]
[423105065,1779855039000,-150.0,0.00015553,2]
[423105087,1779855039000,-2234.348,0.00015599,2]
[423105066,1779855039000,-64943.35008829,0.00015559,2]
[423105075,1779855039000,-40253.29926718,0.0001558,2]
[423105086,1779855039000,-169.768,0.00015599,2]
[423105079,1779855039000,-5607.05743186,0.00015582,2]
[423105083,1779855039000,-996.17381065,0.00015592,2]
[423105081,1779855039000,-150.0,0.00015583,2]
[423105080,1779855039000,-150.0,0.00015583,2]
[423105078,1779855039000,-7407.62462885,0.00015582,2]
[423105060,1779855039000,-380.71609283,0.00015529,2]
[423105085,1779855039000,-380.71609283,0.00015592,2]
[423105084,1779855039000,-163.26368969,0.00015592,2]
[423105076,1779855039000,-150.0,0.00015582,2]
[423105088,1779855039000,-3500.0,0.000156,5]
[423105089,1779855039000,-40253.29926709,0.00015602,2]
[423105097,1779855039000,-380.71609283,0.00015624,2]
[423105082,1779855039000,-64943.35008826,0.00015584,2]
[423105062,1779855039000,-150.0,0.00015539,2]
[423105053,1779855039000,-2300.0,0.000155,5]
[423105058,1779855039000,-150.0,0.00015523,2]
[423105036,1779855039000,-11107.46,0.00015449,2]